bitfinex-derivatives/quotes_SOLF0:USTF0_20250428
["timestamp","ask_amount","ask_price","bid_price","bid_amount"]
[1745873651677,1.998,146.86,146.83,6.8088]
[1745873653174,1.998,146.86,146.84,6.8083]
[1745873654978,1.998,146.86,146.83,6.8085]
[1745873655678,16.722964,146.86,146.83,6.8085]
[1745873656482,16.722964,146.86,146.78,24.82]
[1745873657181,16.722964,146.86,146.79,14.724964]
[1745873658082,1.998,146.86,146.81,6.8097]
[1745873658885,8.8055,146.86,146.81,6.8097]
[1745873659786,8.8055,146.86,146.82,6.8092]
[1745873659987,1.998,146.86,146.79,14.724964]
[1745873660184,1.998,146.86,146.79,16.678764]
[1745873660389,2.001,146.87,146.81,14.724964]
[1745873660584,24.84,146.88,146.81,14.724964]
[1745873661090,24.84,146.88,146.83,6.8088]
[1745873661779,31.6469,146.88,146.83,6.8088]
[1745873661984,31.6469,146.88,146.82,6.8092]
[1745873662390,6.8071,146.87,146.82,6.8092]
[1745873662589,39.564964,146.88,146.79,16.678764]
[1745873663082,14.724964,146.86,146.79,1.9538]
[1745873663591,6.8087,146.84,146.79,8.7644]
[1745873667293,6.8087,146.84,146.8,6.8102]
[1745873667793,6.8087,146.84,146.79,1.9538]
[1745873667992,6.8087,146.84,146.79,8.7643]
[1745873669495,6.8087,146.84,146.8,6.8102]
[1745873669690,24.84,146.88,146.81,14.724964]
[1745873670598,6.8078,146.86,146.81,21.534564]
[1745873670799,6.8078,146.86,146.81,6.8096]
[1745873671299,6.808,146.85,146.81,6.8096]
[1745873673700,6.8076,146.86,146.82,6.8093]
[1745873675800,6.8079,146.85,146.82,6.8093]
[1745873676100,6.8079,146.85,146.81,6.8096]
[1745873676401,6.8077,146.86,146.79,16.678764]
[1745873676601,6.8077,146.86,146.82,6.8092]
[1745873678605,6.808,146.85,146.82,6.8092]
[1745873678802,39.564964,146.88,146.82,6.8092]
[1745873679606,6.8078,146.86,146.82,6.8092]
[1745873681509,6.808,146.85,146.82,6.8092]
[1745873681710,14.724964,146.86,146.79,1.9538]
[1745873682309,6.8087,146.84,146.81,6.8097]
[1745873683311,6.8078,146.86,146.82,6.8091]
[1745873684112,6.8078,146.86,146.83,6.8088]
[1745873686110,6.8072,146.87,146.83,6.8088]
[1745873686314,39.564964,146.88,146.84,6.808]
[1745873686507,24.84,146.88,146.82,24.8]
[1745873686707,8.8085,146.9,146.83,14.724964]
[1745873687112,8.8085,146.9,146.86,6.8071]
[1745873687710,6.8061,146.89,146.86,6.8071]
[1745873687909,2.0027,146.9,146.87,6.8069]
[1745873689016,8.8085,146.9,146.87,6.8069]
[1745873690616,6.8062,146.89,146.86,6.8072]
[1745873691315,6.8062,146.89,146.87,6.8069]
[1745873691515,14.724964,146.92,146.83,14.724964]
[1745873691717,14.724964,146.92,146.84,2.002]
[1745873692015,16.657964,146.93,146.84,2.002]
[1745873692217,1.933,146.93,146.85,14.724964]
[1745873692412,1.933,146.93,146.86,24.8]
[1745873692816,6.8049,146.92,146.89,6.806]
[1745873694015,6.8052,146.91,146.89,6.806]
[1745873694811,1.933,146.93,146.88,6.8065]
[1745873694812,6.8048,146.92,146.88,6.8065]
[1745873695015,1.933,146.93,146.88,6.8065]
[1745873695813,6.8053,146.91,146.88,6.8065]
[1745873697817,6.8053,146.91,146.87,6.8068]
[1745873698118,6.8053,146.91,146.86,24.8]
[1745873698318,6.8049,146.92,146.86,24.8]
[1745873699218,6.8049,146.92,146.88,6.8061]
[1745873699614,6.8052,146.91,146.86,24.8]
[1745873699820,39.504964,146.9,146.84,2.002]
[1745873700021,39.504964,146.9,146.83,24.78]
[1745873700314,39.504964,146.9,146.83,31.5886]
[1745873700618,6.8077,146.86,146.83,24.78]
[1745873700810,39.504964,146.9,146.83,31.5888]
[1745873701009,39.504964,146.9,146.83,24.78]
[1745873701220,6.8068,146.88,146.83,24.78]
[1745873701422,39.504964,146.9,146.85,6.8076]
[1745873701822,6.8062,146.89,146.83,39.504964]
[1745873702022,26.713,146.93,146.85,14.724964]
[1745873702219,33.5176,146.93,146.87,14.724964]
[1745873702520,33.5176,146.93,146.87,39.504964]
[1745873702722,33.5176,146.93,146.89,6.8058]
[1745873702919,33.5176,146.93,146.87,39.504964]
[1745873703115,33.5176,146.93,146.89,6.8058]
[1745873703321,26.713,146.93,146.87,39.504964]
[1745873704025,33.5175,146.93,146.87,39.504964]
[1745873704523,26.713,146.93,146.87,39.504964]
[1745873704826,6.8047,146.92,146.89,6.8058]
[1745873705029,26.713,146.93,146.89,6.8058]
[1745873705825,33.5174,146.93,146.9,6.8055]
[1745873707725,33.5174,146.93,146.89,6.8059]
[1745873708124,33.5174,146.93,146.87,39.504964]
[1745873708518,6.8047,146.92,146.87,39.504964]
[1745873708825,24.78,146.96,146.89,14.724964]
[1745873709521,31.5831,146.96,146.92,6.8043]
[1745873709727,24.78,146.96,146.92,6.8043]
[1745873710227,6.8033,146.95,146.92,6.8043]
[1745873710525,24.78,146.96,146.92,6.8043]
[1745873710825,31.5832,146.96,146.92,6.8043]
[1745873711525,31.5832,146.96,146.89,14.724964]
[1745873712327,6.8034,146.95,146.91,6.8051]
[1745873712927,24.78,146.96,146.9,6.8055]
[1745873713121,14.724964,146.95,146.87,39.504964]
[1745873713321,14.724964,146.93,146.87,24.78]
[1745873713522,2.1135,146.92,146.87,24.78]
[1745873713826,2.1135,146.92,146.85,26.7956]
[1745873714127,6.8058,146.9,146.87,6.8069]
[1745873716629,6.8061,146.89,146.86,6.8073]
[1745873717123,6.8058,146.9,146.87,6.807]
[1745873720032,24.78,146.95,146.87,14.724964]
[1745873720527,6.804,146.94,146.87,14.724964]
[1745873720731,6.804,146.94,146.89,14.724964]
[1745873720928,6.804,146.94,146.89,39.504964]
[1745873721128,6.804,146.94,146.91,6.8049]
[1745873722831,31.5834,146.95,146.91,6.8049]
[1745873723131,31.5834,146.95,146.9,6.8054]
[1745873723436,31.5834,146.95,146.89,39.504964]
[1745873723732,31.5834,146.95,146.91,6.8049]
[1745873725934,6.8038,146.94,146.91,6.8049]
[1745873729644,31.5835,146.95,146.92,6.8046]
[1745873730848,6.8038,146.94,146.92,6.8046]
[1745873731153,6.8038,146.94,146.91,6.8049]
[1745873731445,6.8038,146.94,146.89,39.504964]
[1745873731646,6.8038,146.94,146.91,6.8049]
[1745873732444,6.8042,146.93,146.91,6.8049]
[1745873732648,16.687464,146.97,146.91,6.8049]
[1745873733450,16.687464,146.97,146.92,6.8046]
[1745873734048,6.804,146.94,146.92,6.8046]
[1745873734845,6.804,146.94,146.89,39.504964]
[1745873735347,6.804,146.94,146.91,6.8049]
[1745873737246,6.8043,146.93,146.91,6.8049]
[1745873738548,6.804,146.94,146.91,6.8049]
[1745873738848,6.804,146.94,146.92,6.8046]
[1745873739453,6.804,146.94,146.89,39.504964]
[1745873739454,6.804,146.94,146.91,6.8049]
[1745873740147,6.8043,146.93,146.91,6.8049]
[1745873740348,6.8043,146.93,146.9,6.8054]
[1745873740550,14.724964,146.91,146.85,2.0156]
[1745873740846,14.724964,146.89,146.83,24.76]
[1745873741047,6.8072,146.87,146.83,24.76]
[1745873741647,6.8067,146.88,146.83,24.76]
[1745873741954,6.8067,146.88,146.83,39.484964]
[1745873742153,6.8067,146.88,146.84,6.8081]
[1745873742856,6.8067,146.88,146.85,6.8079]
[1745873745455,6.8066,146.88,146.85,6.8079]
[1745873745651,24.76,146.9,146.83,39.484964]
[1745873746050,6.8065,146.88,146.85,6.8075]
[1745873746251,24.76,146.9,146.83,39.484964]
[1745873747257,24.76,146.9,146.85,6.8079]
[1745873747552,24.76,146.9,146.83,24.76]
[1745873747857,6.8059,146.9,146.86,6.8071]
[1745873748353,2.1367,146.91,146.85,14.724964]
[1745873748651,14.724964,146.95,146.87,14.724964]
[1745873748855,2.1214,146.96,146.9,6.8053]
[1745873749155,2.1214,146.96,146.89,14.724964]
[1745873749554,6.8036,146.95,146.91,6.8051]
[1745873750055,2.1214,146.96,146.92,6.8043]
[1745873750560,24.78,146.97,146.91,39.504964]
[1745873752357,6.8031,146.96,146.93,6.8041]
[1745873754856,24.78,146.97,146.91,24.78]
[1745873755060,39.504964,146.97,146.91,24.78]
[1745873755461,6.803,146.96,146.91,39.504964]
[1745873756362,6.803,146.96,146.93,6.8039]
[1745873757461,31.5826,146.97,146.94,6.8037]
[1745873757765,24.78,146.97,146.91,39.504964]
[1745873758663,6.8029,146.96,146.93,6.8038]
[1745873766271,6.8033,146.95,146.93,6.8038]
[1745873766473,24.78,146.97,146.93,6.8038]
[1745873767272,6.803,146.96,146.93,6.8038]
[1745873770572,2.0413,146.98,146.93,6.8038]
[1745873770776,6.8033,146.95,146.93,6.8038]
[1745873773372,39.484964,146.95,146.86,24.76]
[1745873773580,14.724964,146.92,146.86,24.76]
[1745873774676,14.724964,146.92,146.88,6.8062]
[1745873775277,6.8053,146.91,146.88,6.8062]
[1745873777075,6.8053,146.91,146.89,6.806]
[1745873777982,21.529764,146.92,146.89,6.806]
[1745873778377,21.529764,146.92,146.9,6.8055]
[1745873778579,16.777964,146.94,146.87,14.724964]
[1745873778775,2.053,146.94,146.87,14.724964]
[1745873778972,2.053,146.94,146.88,2.1331]
[1745873779171,8.8568,146.94,146.88,2.1331]
[1745873779476,24.76,146.95,146.88,2.1331]
[1745873779671,24.76,146.95,146.89,14.724964]
[1745873780376,14.724964,146.96,146.9,24.76]
[1745873780582,14.724964,146.96,146.92,6.8045]
[1745873781275,6.8033,146.95,146.92,6.8045]
[1745873781475,14.724964,146.96,146.93,6.8042]
[1745873781875,21.528064,146.96,146.93,6.8042]
[1745873784481,21.528064,146.96,146.94,6.8037]
[1745873784980,21.528064,146.96,146.9,24.76]
[1745873785281,21.528064,146.96,146.93,6.8038]
[1745873785982,6.8031,146.96,146.93,6.8038]
[1745873786783,6.8026,146.97,146.94,6.8036]
[1745873788182,2.0361,146.99,146.93,14.724964]
[1745873788378,24.76,147.01,146.93,14.724964]
[1745873788682,24.76,147.01,146.96,6.8025]
[1745873789178,6.8022,146.98,146.95,6.8033]
[1745873789385,16.758764,147.0,146.91,39.484964]
[1745873789686,14.724964,146.98,146.93,6.8042]
[1745873789882,1.9275,146.97,146.93,6.8042]
[1745873790284,6.8031,146.96,146.93,6.8042]
[1745873790886,1.9275,146.97,146.91,24.76]
[1745873791586,8.7302,146.97,146.93,6.804]
[1745873791888,2.0338,147.0,146.91,39.484964]
[1745873791889,16.758764,147.0,146.91,39.484964]
[1745873792087,16.758764,147.0,146.95,6.803]
[1745873792088,6.8021,146.98,146.95,6.803]
[1745873796284,6.8024,146.97,146.94,6.8036]
[1745873796789,6.8024,146.97,146.95,6.8032]
[1745873798287,6.8024,146.97,146.94,6.8035]
[1745873800094,6.8028,146.96,146.94,6.8035]
[1745873800691,16.758764,147.0,146.94,6.8035]
[1745873800889,6.8028,146.97,146.94,6.8035]
[1745873801592,6.8028,146.96,146.94,6.8035]
[1745873804691,14.724964,146.99,146.94,6.8035]
[1745873804692,6.8026,146.97,146.94,6.8035]
[1745873808397,6.8026,146.97,146.95,6.8032]
[1745873808795,6.8021,146.98,146.95,6.8032]
[1745873809495,6.8016,146.99,146.96,6.8026]
[1745873811095,6.8019,146.98,146.95,6.8031]
[1745873811295,6.8019,146.98,146.91,39.484964]
[1745873811800,6.8017,146.99,146.96,6.8027]
[1745873812497,2.0338,147.0,146.96,6.8027]
[1745873813003,6.8017,146.99,146.96,6.8027]
[1745873813506,6.8017,146.99,146.97,6.8023]
[1745873813906,6.8017,146.99,146.91,39.484964]
[1745873814407,6.8017,146.99,146.96,6.8026]
[1745873814602,6.8017,146.99,146.91,39.484964]
[1745873814798,2.0338,147.0,146.91,39.484964]
[1745873814799,6.8012,147.0,146.93,14.724964]
[1745873815103,6.8012,147.0,146.94,1.9786]
[1745873815303,6.8012,147.0,146.95,24.74]
[1745873815503,6.8012,147.0,146.97,6.8021]
[1745873817110,6.8012,147.0,146.98,6.8019]
[1745873817709,6.8012,147.0,146.97,6.8021]
[1745873817908,41.412464,147.01,146.95,24.74]
[1745873818208,14.724964,146.99,146.92,24.74]
[1745873818508,6.8024,146.97,146.95,6.803]
[1745873818710,14.724964,146.99,146.95,6.803]
[1745873819009,6.8023,146.98,146.95,6.803]
[1745873819608,6.8023,146.98,146.96,6.8028]
[1745873819910,6.8023,146.98,146.92,24.74]
[1745873820409,1.971,147.0,146.93,14.724964]
[1745873820606,26.6875,147.01,146.93,14.724964]
[1745873820806,33.4882,147.01,146.98,6.8017]
[1745873821711,6.801,147.0,146.98,6.8017]
[1745873823212,6.801,147.0,146.97,6.8022]
[1745873824415,6.8015,146.99,146.97,6.8022]
[1745873824609,6.8015,146.99,146.96,6.8026]
[1745873824814,41.412464,147.01,146.92,24.74]
[1745873826316,41.412464,147.01,146.93,14.724964]
[1745873826920,6.8012,147.0,146.97,6.8021]
[1745873828018,14.724964,146.99,146.9,2.1115]
[1745873828218,14.724964,146.96,146.9,2.1115]
[1745873828421,6.8035,146.95,146.9,2.1115]
[1745873829118,6.8035,146.95,146.91,6.8049]
[1745873829321,6.8038,146.94,146.91,6.8049]
[1745873830216,6.8035,146.95,146.92,6.8046]
[1745873832924,6.8039,146.94,146.91,6.8049]
[1745873835023,6.8035,146.95,146.92,6.8046]
[1745873835719,6.803,146.96,146.93,6.8039]
[1745873835924,24.72,146.97,146.9,16.836464]
[1745873836526,31.5226,146.97,146.9,16.836464]
[1745873837027,31.5226,146.97,146.94,6.8035]
[1745873837221,2.1207,146.99,146.92,14.724964]
[1745873837422,24.72,147.0,146.93,24.72]
[1745873837621,1.9498,147.03,146.94,14.724964]
[1745873837926,26.6698,147.03,146.98,14.724964]
[1745873838426,33.4694,147.03,147.0,6.8007]
[1745873838724,1.9498,147.03,146.98,14.724964]
[1745873839026,489.74,147.06,147.0,14.724964]
[1745873839027,514.46,147.06,147.0,14.724964]
[1745873839222,24.72,147.06,147.0,14.724964]
[1745873840026,6.7987,147.05,147.02,6.7998]
[1745873842531,6.7991,147.04,147.02,6.7998]
[1745873843034,6.7991,147.04,147.01,6.8003]
[1745873843433,6.7991,147.04,147.0,14.724964]
[1745873843636,6.7991,147.04,147.01,6.8004]
[1745873843838,6.7991,147.04,147.0,14.724964]
[1745873844435,6.7991,147.04,147.01,6.8002]
[1745873844937,6.7991,147.04,147.02,6.8]
[1745873845735,6.7991,147.04,147.01,6.8003]
[1745873846135,4.028,147.07,147.02,6.7998]
[1745873846736,6.7987,147.05,147.02,6.7998]
[1745873846940,4.028,147.07,147.0,14.724964]
[1745873847333,1.9406,147.07,147.02,14.724964]
[1745873847634,24.72,147.1,147.04,14.724964]
[1745873848133,31.5166,147.1,147.06,6.7978]
[1745873848736,14.724964,147.09,147.0,14.724964]
[1745873848936,14.724964,147.05,146.98,2.0875]
[1745873849237,31.5185,147.06,147.0,14.724964]
[1745873849736,31.5185,147.06,147.02,6.7998]
[1745873849939,39.444964,147.06,146.98,16.812464]
[1745873850740,39.444964,147.06,147.01,6.8003]
[1745873851038,39.444964,147.06,146.98,16.812464]
[1745873851636,6.7988,147.05,146.98,2.0875]
[1745873852640,6.7988,147.05,147.01,6.8001]
[1745873852837,6.7988,147.05,146.98,2.0875]
[1745873853142,31.5184,147.06,147.02,6.7997]
[1745873853540,31.5184,147.06,146.98,2.0875]
[1745873854145,24.72,147.06,147.03,6.7993]
[1745873855640,31.5182,147.06,147.03,6.7993]
[1745873856639,24.72,147.06,146.98,2.0875]
[1745873858044,6.7989,147.05,147.02,6.8]
[1745873858242,24.72,147.06,146.98,2.0875]
[1745873858639,6.7991,147.04,147.01,6.8002]
[1745873859242,6.7991,147.04,147.02,6.8]
[1745873859643,24.72,147.06,147.02,6.8]
[1745873859644,6.7989,147.05,147.02,6.8]
[1745873860444,24.72,147.06,146.98,2.0875]
[1745873860645,3.8995,147.05,146.98,2.0875]
[1745873862248,3.8995,147.05,147.01,6.8004]
[1745873862249,6.7998,147.03,147.01,6.8004]
[1745873862444,3.8995,147.05,147.01,6.8004]
[1745873862947,6.7994,147.04,147.01,6.8004]
[1745873863847,10.6984,147.05,146.98,2.0875]
[1745873864146,3.8995,147.05,146.98,2.0875]
[1745873864346,24.72,147.06,146.98,2.0875]
[1745873865150,31.5182,147.06,147.03,6.7994]
[1745873865352,24.72,147.06,146.98,2.0875]
[1745873865850,31.5185,147.06,147.03,6.7992]
[1745873866851,24.72,147.06,147.04,6.7991]
[1745873867052,6.7979,147.07,147.04,6.7991]
[1745873867551,6.7979,147.07,147.03,6.7993]
[1745873868655,6.7982,147.06,147.04,6.799]
[1745873868856,3.9635,147.08,147.01,24.7]
[1745873869156,6.7994,147.04,146.99,24.7]
[1745873869558,6.7994,147.04,147.01,6.8001]
[1745873869755,6.7994,147.04,146.99,24.7]
[1745873870059,6.7994,147.04,147.01,6.8002]
[1745873870358,24.7,147.05,146.98,2.0875]
[1745873870758,24.7,147.05,147.02,6.8]
[1745873870959,24.7,147.05,146.98,2.0875]
[1745873872061,31.4989,147.05,147.02,6.7998]
[1745873872260,24.7,147.05,146.98,2.0875]
[1745873872456,3.9635,147.08,146.98,2.0875]
[1745873872457,28.6635,147.08,146.98,2.0875]
[1745873872761,6.7981,147.07,147.03,6.7992]
[1745873872958,28.6635,147.08,147.03,6.7992]
[1745873873156,6.7979,147.07,147.04,6.7988]
[1745873874163,35.4609,147.08,147.05,6.7986]
[1745873875265,28.6635,147.08,147.06,6.7979]
[1745873875465,2.0124,147.08,147.03,14.66830262]
[1745873875665,24.7,147.11,147.03,14.66830262]
[1745873875864,24.7,147.11,147.04,24.7]
[1745873876160,6.7966,147.1,147.04,24.7]
[1745873876465,24.7,147.11,147.04,24.7]
[1745873876665,31.4961,147.11,147.04,24.7]
[1745873877362,6.7965,147.1,147.07,6.7975]
[1745873877655,6.7965,147.1,147.04,24.7]
[1745873877656,24.7,147.11,147.04,24.7]
[1745873878766,6.7965,147.1,147.06,6.7978]
[1745873878967,6.7965,147.1,147.04,24.7]
[1745873879462,6.7965,147.1,147.07,6.7975]
[1745873879657,6.7965,147.1,147.04,24.7]
[1745873879958,6.7968,147.09,147.04,24.7]
[1745873880164,14.66830262,147.1,147.04,24.7]
[1745873880770,6.7976,147.08,147.05,6.7982]
[1745873881369,6.7978,147.07,147.05,6.7982]
[1745873881666,14.66830262,147.1,147.05,6.7982]
[1745873881868,6.7975,147.08,147.05,6.7982]
[1745873884166,6.7975,147.08,147.06,6.7982]
[1745873884370,6.7969,147.09,147.06,6.7982]
[1745873885570,14.66830262,147.08,147.01,24.68]
[1745873886072,2.0405,147.07,147.01,24.68]
[1745873886469,6.7988,147.05,147.02,6.7998]
[1745873887271,6.7992,147.04,147.02,6.7998]
[1745873887474,14.66830262,147.06,146.98,26.7675]
[1745873887976,6.7995,147.04,146.98,26.7675]
[1745873888274,6.7995,147.04,147.0,6.8006]
[1745873888773,6.7995,147.04,146.98,41.43580262]
[1745873889073,6.7993,147.04,146.98,41.43580262]
[1745873889375,14.66830262,147.06,146.98,41.43580262]
[1745873889573,14.66830262,147.06,146.98,26.7675]
[1745873890174,14.66830262,147.06,146.99,6.8013]
[1745873890771,14.66830262,147.06,146.98,41.43580262]
[1745873890975,6.7996,147.04,147.0,6.8008]
[1745873891377,6.7996,147.04,147.01,6.8005]
[1745873892072,14.66830262,147.06,146.99,6.8012]
[1745873893180,14.66830262,147.06,147.0,6.8008]
[1745873893679,6.7994,147.04,147.01,6.8002]
[1745873894777,6.7994,147.04,147.02,6.8]
[1745873896884,6.7994,147.04,147.01,6.8003]
[1745873897179,14.66830262,147.06,146.98,26.7675]
[1745873897385,14.66830262,147.04,146.99,6.8012]
[1745873897584,14.66830262,147.04,146.98,26.7675]
[1745873897885,6.7999,147.03,146.98,26.7675]
[1745873898077,6.7999,147.03,147.0,6.8009]
[1745873900284,6.8001,147.02,147.0,6.8009]
[1745873906988,6.8001,147.02,146.98,26.7675]
[1745873906989,6.7998,147.03,147.01,6.8004]
[1745873907193,14.66830262,147.06,146.98,41.43580262]
[1745873907488,6.7994,147.04,147.01,6.8003]
[1745873909189,6.7994,147.04,147.02,6.8]
[1745873910190,6.7994,147.04,147.01,6.8003]
[1745873912989,28.667,147.07,147.0,14.66830262]
[1745873913189,24.68,147.07,147.02,14.66830262]
[1745873913390,39.32830262,147.1,147.02,39.32830262]
[1745873913590,6.7975,147.08,147.05,6.7986]
[1745873913892,24.66,147.1,147.02,39.32830262]
[1745873914193,6.7974,147.08,147.05,6.7984]
[1745873915192,6.797,147.09,147.06,6.7982]
[1745873916193,6.7973,147.08,147.05,6.7985]
[1745873917890,6.797,147.09,147.06,6.7979]
[1745873918089,26.6301,147.11,147.04,14.66830262]
[1745873918584,6.7966,147.1,147.07,6.7974]
[1745873922392,6.7969,147.09,147.06,6.798]
[1745873923897,26.6301,147.11,147.03,2.1356]
[1745873923898,6.7973,147.08,147.05,6.7985]
[1745873924098,14.66830262,147.1,147.05,6.7985]
[1745873924993,6.798,147.07,147.05,6.7985]
[1745873925395,14.66830262,147.08,147.03,2.1356]
[1745873925596,6.7986,147.06,147.03,2.1356]
[1745873925796,6.7986,147.06,147.03,8.9349]
[1745873926393,6.7979,147.07,147.04,6.7991]
[1745873926599,26.6301,147.11,147.03,2.1356]
[1745873926796,26.6301,147.11,147.07,6.7975]
[1745873927098,6.7969,147.09,147.07,6.7975]
[1745873927399,6.7969,147.09,147.04,14.66830262]
[1745873927591,6.7966,147.1,147.04,14.66830262]
[1745873928295,6.7966,147.1,147.06,14.66830262]
[1745873928597,6.7956,147.12,147.06,14.66830262]
[1745873928797,6.7956,147.12,147.09,6.7966]
[1745873928998,39.32830262,147.14,147.09,6.7966]
[1745873929190,39.32830262,147.14,147.06,39.32830262]
[1745873929501,39.32830262,147.14,147.07,6.7976]
[1745873929697,39.32830262,147.14,147.06,24.66]
[1745873929891,14.66830262,147.12,147.06,24.66]
[1745873930096,14.66830262,147.12,147.04,14.66830262]
[1745873930599,6.7969,147.09,147.06,6.7979]
[1745873930798,39.32830262,147.1,147.03,26.7956]
[1745873931104,24.66,147.09,147.03,2.1356]
[1745873931301,6.7976,147.08,147.04,6.7989]
[1745873932001,6.7978,147.07,147.04,6.7989]
[1745873933706,6.7974,147.08,147.05,6.7986]
[1745873934003,24.66,147.09,147.04,14.66830262]
[1745873934700,6.7982,147.06,147.03,8.9349]
[1745873934902,39.32830262,147.09,147.03,2.1356]
[1745873935405,6.798,147.07,147.04,6.7987]
[1745873937907,6.7975,147.08,147.05,6.7986]
[1745873938906,6.7975,147.08,147.06,6.7982]
[1745873939108,31.457,147.09,147.06,6.7982]
[1745873939310,24.66,147.09,147.03,2.1356]
[1745873940408,6.7975,147.08,147.05,6.7983]
[1745873942210,31.457,147.09,147.06,6.7981]
[1745873942601,24.66,147.09,147.03,2.1356]
[1745873942809,6.7973,147.08,147.05,6.7984]
[1745873943816,6.7978,147.07,147.04,6.799]
[1745873945118,6.7978,147.07,147.05,6.7986]
[1745873945512,24.66,147.09,147.05,6.7986]
[1745873945913,39.32830262,147.09,147.0,39.32830262]
[1745873946107,6.7987,147.06,147.0,39.32830262]
[1745873946308,14.66830262,147.07,147.0,24.66]
[1745873946711,6.7991,147.04,147.02,6.7998]
[1745873946912,14.66830262,147.07,147.02,6.7998]
[1745873947113,6.7988,147.05,147.03,6.7995]
[1745873947918,6.7984,147.06,147.03,6.7995]
[1745873950019,6.7987,147.05,147.03,6.7995]
[1745873951821,6.7987,147.05,147.02,6.7999]
[1745873952016,14.66830262,147.05,147.0,24.66]
[1745873952217,39.30830262,147.05,146.97,24.64]
[1745873952425,6.8004,147.02,146.99,6.8011]
[1745873952622,14.66830262,147.03,146.97,24.64]
[1745873952921,4.0053,147.04,146.97,24.64]
[1745873953118,6.7999,147.03,147.0,6.8007]
[1745873954324,6.8001,147.02,147.0,6.8007]
[1745873954818,6.8001,147.02,146.99,6.8013]
[1745873955124,6.8001,147.02,146.97,24.64]
[1745873955424,6.7998,147.03,147.0,6.8009]
[1745873957621,24.64,147.05,147.0,14.66830262]
[1745873957923,28.6128,147.08,147.0,14.66830262]
[1745873958120,28.6128,147.08,147.02,14.66830262]
[1745873958519,43.28110262,147.08,147.01,1.9611]
[1745873958722,14.66830262,147.06,147.01,1.9611]
[1745873959025,6.7989,147.05,147.02,6.7999]
[1745873959326,14.66830262,147.06,146.98,24.64]
[1745873959528,6.8,147.02,147.0,6.8009]
[1745873959728,39.30830262,147.04,147.0,6.8009]
[1745873960027,24.64,147.04,146.98,24.64]
[1745873960225,31.4394,147.04,147.01,6.8005]
[1745873960920,31.4394,147.04,147.0,6.8008]
[1745873962829,6.7996,147.03,147.0,6.8008]
[1745873964933,6.7996,147.03,146.98,24.64]
[1745873965233,6.7996,147.03,146.99,6.8012]
[1745873965631,6.7996,147.03,147.0,6.8009]
[1745873966329,6.7996,147.03,146.98,24.64]
[1745873966330,24.64,147.07,147.01,6.8004]
[1745873966731,6.7989,147.05,147.01,6.8004]
[1745873967532,24.64,147.07,147.01,6.8004]
[1745873968831,6.7992,147.04,147.01,6.8004]
[1745873969727,14.66830262,147.06,146.98,24.64]
[1745873970228,41.39070262,147.07,146.98,24.64]
[1745873970428,14.66830262,147.02,146.96,1.9837]
[1745873970731,6.8018,146.99,146.95,24.64]
[1745873970932,6.8018,146.99,146.95,31.443]
[1745873971833,6.802,146.98,146.95,31.443]
[1745873972132,6.802,146.98,146.95,6.803]
[1745873972331,14.66830262,147.0,146.92,24.64]
[1745873972332,6.8017,146.99,146.96,6.8028]
[1745873972532,1.9632,147.01,146.93,14.66830262]
[1745873973032,6.8012,147.0,146.93,14.66830262]